bitfinex-derivatives/quotes_ETHF0:USTF0_20240927
["timestamp","ask_amount","ask_price","bid_price","bid_amount"]
[1727460425511,0.37058,2697.8,2697.7,0.37058]
[1727460426909,0.37057,2697.9,2697.8,0.37056]
[1727460427309,0.37058,2697.8,2697.7,0.37058]
[1727460427714,0.37057,2697.9,2697.8,0.37057]
[1727460427914,3.2078,2698.0,2697.4,0.92657]
[1727460427915,0.37059,2697.8,2697.7,0.37058]
[1727460429430,0.37059,2697.8,2697.4,0.92657]
[1727460429431,0.37056,2697.9,2697.8,0.37056]
[1727460430925,0.37058,2697.8,2697.7,0.37058]
[1727460436822,0.3706,2697.7,2697.6,0.37059]
[1727460443439,0.3706,2697.7,2697.3,1.423]
[1727460443739,7.50589,2698.0,2697.4,0.37061]
[1727460443740,0.37063,2697.5,2697.4,0.37061]
[1727460443934,0.92645,2697.8,2697.5,0.37061]
[1727460443935,0.37061,2697.6,2697.5,0.37061]
[1727460445631,0.37062,2697.5,2697.4,0.37062]
[1727460446837,7.5059,2698.0,2697.3,1.423]
[1727460447047,0.37059,2697.8,2697.7,0.37058]
[1727460447432,0.37059,2697.7,2697.6,0.37059]
[1727460452346,0.92642,2697.9,2697.5,1.43725798]
[1727460452543,3.2078,2698.3,2698.2,0.37052]
[1727460452741,3.2078,2698.3,2698.1,0.37053]
[1727460452950,0.37053,2698.1,2698.0,1.5038]
[1727460453652,0.37053,2698.1,2698.0,0.5043]
[1727460454144,0.37059,2697.8,2697.6,2.75425798]
[1727460454445,3.57839,2697.7,2697.6,2.88795798]
[1727460454653,3.57839,2697.7,2697.6,4.3529464]
[1727460454852,3.57839,2697.7,2697.6,8.0601464]
[1727460455546,3.57839,2697.7,2697.6,4.3529464]
[1727460456148,3.57839,2697.7,2697.6,4.35297648]
[1727460457053,3.57839,2697.7,2697.6,2.9157185]
[1727460457454,3.57839,2697.7,2697.6,4.35297648]
[1727460458450,3.2078,2697.7,2697.6,4.72357648]
[1727460458755,3.57839,2697.7,2697.6,4.35297648]
[1727460459046,3.57839,2697.7,2697.6,2.9157185]
[1727460459853,3.2078,2697.7,2697.6,3.2863185]
[1727460460053,3.2078,2697.7,2697.6,4.72357648]
[1727460460450,3.2078,2697.7,2697.6,4.35297648]
[1727460460451,3.57839,2697.7,2697.6,4.35297648]
[1727460460847,3.57839,2697.7,2697.6,1.4507]
[1727460461247,3.57839,2697.7,2697.6,1.8213]
[1727460461561,3.57839,2697.7,2697.6,1.4507]
[1727460462047,3.57839,2697.7,2697.6,1.8213]
[1727460462355,3.57839,2697.7,2697.6,1.3394]
[1727460462551,0.37059,2697.7,2697.6,1.3394]
[1727460462756,3.57839,2697.7,2697.6,1.3394]
[1727460463254,3.57839,2697.7,2697.6,0.9688]
[1727460463456,3.57839,2697.7,2697.6,1.3394]
[1727460463651,3.2078,2697.7,2697.6,1.3394]
[1727460464861,3.57839,2697.7,2697.6,1.3394]
[1727460465558,3.57839,2697.7,2697.6,0.3706]
[1727460465749,3.57839,2697.7,2697.5,0.87341]
[1727460465950,0.3706,2697.6,2697.5,0.87341]
[1727460466356,3.2078,2697.7,2697.6,0.3706]
[1727460466564,3.57839,2697.7,2697.6,0.3706]
[1727460467351,3.2078,2697.7,2697.6,0.3706]
[1727460467961,3.2078,2697.7,2697.6,3.27355974]
[1727460468563,3.57839,2697.7,2697.6,3.27355974]
[1727460470355,0.37059,2697.7,2697.6,1.83630176]
[1727460470564,3.57839,2697.7,2697.6,1.83630176]
[1727460470868,3.57839,2697.7,2697.6,3.29554807]
[1727460471455,3.57839,2697.7,2697.6,3.29656015]
[1727460471660,3.2078,2697.7,2697.6,3.29656015]
[1727460471857,0.37058,2697.8,2697.7,0.37059]
[1727460472060,0.37058,2697.8,2697.7,3.29656155]
[1727460472260,0.37058,2697.8,2697.7,2.92597155]
[1727460473065,1.29702,2697.8,2697.7,1.46671384]
[1727460473276,0.37059,2697.7,2697.6,1.45925771]
[1727460473479,4.08249,2697.7,2697.6,1.46675066]
[1727460473868,4.08249,2697.7,2697.6,2.92600837]
[1727460476482,4.08249,2697.7,2697.6,2.92592566]
[1727460477183,3.2078,2697.7,2697.6,3.29652566]
[1727460477483,3.2078,2697.7,2697.6,7.00372566]
[1727460477781,3.2078,2697.7,2697.6,7.00362294]
[1727460477987,3.2078,2698.3,2698.2,0.37051]
[1727460478186,3.2078,2698.7,2698.2,2.89]
[1727460478492,0.80795857,2698.6,2698.4,0.37049]
[1727460478685,3.57826,2698.7,2698.4,0.37049]
[1727460478984,0.37047,2698.6,2698.4,0.37049]
[1727460480277,3.57826,2698.7,2698.5,0.37047]
[1727460480485,0.37046,2698.6,2698.4,0.37048]
[1727460480680,0.37048,2698.5,2698.3,0.8588]
[1727460481076,0.37049,2698.4,2698.3,0.4883]
[1727460481697,0.37052,2698.2,2698.0,0.37054]
[1727460481988,0.37053,2698.1,2697.9,0.4915]
[1727460482190,0.5095,2698.1,2697.9,0.4915]
[1727460482491,0.5095,2698.1,2697.9,0.86205]
[1727460482492,0.88004,2698.1,2697.9,0.86205]
[1727460484184,0.5095,2698.1,2698.0,0.37055]
[1727460485384,0.88003,2698.1,2698.0,0.37055]
[1727460486487,0.5095,2698.1,2697.9,0.4915]
[1727460486796,0.88004,2698.1,2698.0,0.37055]
[1727460488189,0.88004,2698.1,2697.9,0.4915]
[1727460488190,0.88004,2698.1,2697.9,0.86206]
[1727460488492,0.5095,2698.1,2698.0,0.37055]
[1727460489494,0.88003,2698.1,2697.9,0.86205]
[1727460489883,0.37055,2698.0,2697.9,0.86206]
[1727460490083,0.37056,2697.9,2697.8,2.89]
[1727460490283,0.5095,2698.1,2697.9,0.37056]
[1727460490493,0.37056,2697.9,2697.8,3.26056]
[1727460490795,4.13424,2697.9,2697.5,0.85722]
[1727460490989,0.3706,2697.7,2697.5,0.85722]
[1727460491292,0.472,2697.6,2697.5,0.85722]
[1727460491698,0.472,2697.6,2697.5,3.74722]
[1727460494396,0.8426,2697.6,2697.3,2.41650389]
[1727460494601,0.8426,2697.6,2697.5,0.37062]
[1727460496295,0.92662,2697.3,2697.1,1.45660389]
[1727460496501,0.37068,2697.0,2696.9,5.03509389]
[1727460496696,1.36937,2697.2,2697.0,0.37068]
[1727460496895,0.5119,2697.1,2697.0,0.37068]
[1727460499204,0.88257,2697.1,2697.0,0.37068]
[1727460499499,0.5119,2697.1,2697.0,0.37068]
[1727460501110,0.88257,2697.1,2696.9,6.46849]
[1727460502303,0.88258,2697.1,2696.9,6.46849]
[1727460502507,0.88258,2697.1,2697.0,0.37068]
[1727460502811,0.88258,2697.1,2696.9,6.46849]
[1727460503304,0.37068,2697.0,2696.9,6.46849]
[1727460504010,0.88258,2697.1,2697.0,0.37068]
[1727460505507,0.9265,2697.7,2697.1,0.37067]
[1727460505811,0.4785,2697.4,2697.3,0.37064]
[1727460505997,3.2078,2697.6,2697.3,2.89]
[1727460506202,0.9621,2698.1,2698.0,0.37055]
[1727460506500,0.37055,2698.0,2697.8,3.26056]
[1727460506804,1.33264,2698.1,2698.0,0.37055]
[1727460507002,0.9621,2698.1,2698.0,0.37055]
[1727460507400,0.37055,2698.0,2697.9,0.88165]
[1727460507703,1.33264,2698.1,2698.0,0.37055]
[1727460508599,1.33264,2698.1,2697.9,0.88165]
[1727460509001,1.33264,2698.1,2698.0,0.37055]
[1727460509207,0.37055,2698.0,2697.9,0.88165]
[1727460510607,0.37055,2698.0,2697.9,0.5111]
[1727460513211,0.37055,2698.0,2697.9,0.88166]
[1727460513405,0.37055,2698.0,2697.9,0.5111]
[1727460513607,1.29693,2698.0,2697.9,0.5111]
[1727460514407,0.37056,2697.9,2697.8,2.7189]
[1727460514710,0.37056,2697.9,2697.8,3.08947]
[1727460514915,3.2078,2698.4,2697.8,6.4253]
[1727460515107,3.2078,2698.4,2697.9,3.8489]
[1727460515315,0.92627,2698.3,2697.9,0.9589]
[1727460515614,0.92627,2698.3,2697.9,1.32946]
[1727460515810,0.37055,2698.0,2697.9,1.32946]
[1727460516007,3.2078,2698.4,2698.0,0.37054]
[1727460516304,3.2078,2698.4,2697.9,0.9589]
[1727460516507,0.37055,2698.0,2697.9,0.9589]
[1727460518302,0.37057,2697.8,2697.7,0.4976]
[1727460518609,0.92638,2698.0,2697.6,0.37059]
[1727460518610,0.37059,2697.7,2697.6,0.5169]
[1727460519016,0.3706,2697.6,2697.5,0.4986]
[1727460519416,0.3706,2697.6,2697.5,0.86922]
[1727460519614,0.3706,2697.6,2697.5,0.4986]
[1727460520512,0.3706,2697.6,2697.5,0.86922]
[1727460520712,0.3706,2697.6,2697.5,0.4986]
[1727460521414,0.3706,2697.6,2697.5,0.86922]
[1727460522214,0.37052,2698.2,2698.0,0.37054]
[1727460522413,0.37052,2698.3,2698.1,0.37053]
[1727460522620,0.37052,2698.2,2698.0,3.26054]
[1727460522809,0.37052,2698.2,2698.1,0.4897]
[1727460523511,0.37054,2698.1,2697.8,3.75256]
[1727460524014,0.37054,2698.1,2697.9,0.37055]
[1727460524217,3.57833,2698.2,2697.9,0.37055]
[1727460524414,0.37054,2698.1,2697.9,0.37055]
[1727460524815,3.57833,2698.2,2697.9,0.37055]
[1727460525020,0.37053,2698.1,2697.9,0.37055]
[1727460525419,0.37053,2698.1,2697.8,3.75257]
[1727460525717,0.37055,2698.0,2697.8,3.75257]
[1727460526120,0.37055,2698.0,2697.8,7.45897]
[1727460526317,0.37055,2698.0,2697.8,3.75257]
[1727460526618,3.2078,2698.2,2697.8,3.75257]
[1727460526923,0.37055,2698.0,2697.8,3.75257]
[1727460527526,0.37054,2698.1,2697.9,0.37056]
[1727460527716,0.37053,2698.1,2697.8,3.382]
[1727460528020,0.37056,2698.0,2697.8,0.492]
[1727460528210,0.37056,2698.0,2697.8,0.86257]
[1727460528414,0.5111,2698.1,2697.8,0.492]
[1727460528711,0.37056,2697.9,2697.8,0.492]
[1727460528916,0.37056,2697.9,2697.7,0.4897]
[1727460529124,0.37056,2697.9,2697.7,0.86028]
[1727460529514,0.37056,2697.9,2697.7,0.4897]
[1727460529733,0.37057,2697.8,2697.7,0.4897]
[1727460530422,0.86527,2697.9,2697.7,0.4897]
[1727460530926,0.4947,2697.9,2697.7,0.86028]
[1727460531217,0.86527,2697.9,2697.7,0.86028]
[1727460531421,0.4947,2697.9,2697.7,0.4897]
[1727460531624,0.4947,2697.9,2697.7,0.86028]
[1727460531815,0.86526,2697.9,2697.7,0.86028]
[1727460532120,0.37057,2697.8,2697.7,0.4897]
[1727460533118,0.4947,2697.9,2697.7,0.86028]
[1727460533311,0.86527,2697.9,2697.7,0.4897]
[1727460533710,0.4947,2697.9,2697.7,0.4897]
[1727460533916,0.4947,2697.9,2697.7,0.86028]
[1727460533917,0.86527,2697.9,2697.7,0.86028]
[1727460534921,0.4947,2697.9,2697.7,0.4897]
[1727460535521,0.86526,2697.9,2697.7,0.86028]
[1727460535723,0.37057,2697.8,2697.7,0.4897]
[1727460536114,0.86527,2697.9,2697.7,0.4897]
[1727460536319,0.37057,2697.8,2697.7,0.4897]
[1727460536524,0.86527,2697.9,2697.7,0.4897]
[1727460536723,0.86527,2697.9,2697.7,0.86029]
[1727460538728,0.86527,2697.9,2697.7,0.4897]
[1727460538918,0.86527,2697.9,2697.7,0.86029]
[1727460539119,0.4947,2697.9,2697.7,0.86029]
[1727460539726,0.86526,2697.9,2697.7,0.86029]
[1727460540327,0.86526,2697.9,2697.8,1.34]
[1727460541418,0.4947,2697.9,2697.8,1.34]
[1727460541619,0.86526,2697.9,2697.8,1.34]
[1727460543014,0.86526,2697.9,2697.7,0.4897]
[1727460543015,0.37057,2697.8,2697.7,0.4897]
[1727460543316,0.86527,2697.9,2697.7,0.4897]
[1727460543515,0.4947,2697.9,2697.7,1.8297]
[1727460543715,0.5111,2698.1,2697.9,0.37055]
[1727460544430,0.5111,2698.1,2697.9,1.71055]
[1727460544925,0.5111,2698.1,2698.0,0.37055]
[1727460545128,0.5111,2698.1,2697.9,1.71055]
[1727460545532,0.88164,2698.1,2697.9,1.71055]
[1727460546428,0.88164,2698.1,2697.9,1.34]
[1727460547027,0.37055,2698.0,2697.9,1.34]
[1727460547322,0.37056,2697.9,2697.7,6.37713504]
[1727460547628,0.5169,2697.9,2697.7,6.00655504]
[1727460547821,0.5169,2697.9,2697.7,5.0375]
[1727460547822,0.37057,2697.8,2697.7,5.0375]
[1727460548229,0.5169,2697.9,2697.7,5.0375]
[1727460548524,0.37057,2697.8,2697.7,4.5478]
[1727460548732,0.5169,2697.9,2697.7,4.5478]
[1727460548924,0.5169,2697.9,2697.7,4.91839]
[1727460549240,0.88747,2697.9,2697.7,5.88744504]
[1727460549424,0.88747,2697.9,2697.7,6.40864504]
[1727460549828,0.88747,2697.9,2697.7,6.03805504]
[1727460550035,0.5169,2697.9,2697.7,6.40864504]
[1727460550234,0.88746,2697.9,2697.8,0.96905504]
[1727460550528,0.88746,2697.9,2697.7,5.069]
[1727460550529,0.5169,2697.9,2697.7,4.5478]
[1727460550829,0.37057,2697.8,2697.7,3.2078]
[1727460551430,0.5169,2697.9,2697.7,3.2078]
[1727460551734,0.37057,2697.8,2697.7,3.2078]
[1727460552141,0.37057,2697.8,2697.7,4.17685504]
[1727460553030,0.88747,2697.9,2697.7,4.17685504]
[1727460553231,0.37057,2697.8,2697.7,4.17685504]
[1727460555330,0.5169,2697.9,2697.7,4.17685504]
[1727460555535,0.37057,2697.8,2697.7,4.17685504]
[1727460556628,0.0485,2697.8,2697.7,4.17685504]
[1727460558032,0.41907,2697.8,2697.7,0.96905504]
[1727460558233,0.41907,2697.8,2697.6,2.30905504]
[1727460558439,0.41907,2697.8,2697.7,0.96905504]
[1727460560135,11.97835,2697.8,2697.7,0.96905504]
[1727460560336,0.92648,2697.7,2697.5,0.96905504]
[1727460560532,0.37063,2697.4,2697.3,0.96905504]
[1727460560842,0.37066,2697.2,2697.1,0.96905504]
[1727460561140,1.29731,2697.2,2697.1,0.96905504]
[1727460561334,1.29731,2697.2,2697.0,0.96905504]
[1727460561335,0.37067,2697.1,2697.0,0.96905504]
[1727460561536,0.86387,2697.1,2697.0,2.30905504]
[1727460562133,0.86387,2697.1,2697.0,1.34]
[1727460563543,0.37067,2697.1,2697.0,1.34]
[1727460565436,0.66727,2697.1,2697.0,1.34]
[1727460566233,1.59395,2697.1,2697.0,1.34]
[1727460566641,2.10525,2697.1,2697.0,1.34]
[1727460569640,0.2966,2697.1,2697.0,1.71068]
[1727460570549,3.2563,2697.8,2697.0,11.048]
[1727460570743,3.2563,2697.8,2697.7,1.34]
[1727460571048,3.62687,2697.8,2697.7,1.34]
[1727460571549,0.0485,2697.8,2697.7,1.71059]
[1727460571746,0.0485,2697.8,2697.7,1.34]
[1727460571942,0.0485,2697.8,2697.7,1.8604]
[1727460572346,0.2852,2697.8,2697.7,3.4104]
[1727460573052,0.65577,2697.8,2697.7,3.4104]
[1727460573449,0.65577,2697.8,2697.7,0.5204]
[1727460574646,0.2852,2697.8,2697.7,0.5204]
[1727460574847,0.65577,2697.8,2697.7,0.5204]
[1727460576361,0.65577,2697.8,2697.6,2.89]
[1727460579665,0.37059,2697.7,2697.6,2.89]
[1727460579964,0.2852,2697.8,2697.4,5.23545504]
[1727460580156,0.37062,2697.5,2697.4,3.2078]
[1727460581359,0.37063,2697.4,2697.3,2.89]
[1727460581662,0.37063,2697.4,2697.2,2.35700504]
[1727460581865,0.37063,2697.4,2697.2,1.38795]
[1727460582363,1.36891,2697.6,2697.2,1.0173]
[1727460582564,0.9983,2697.6,2697.5,0.37062]
[1727460582962,0.4824,2697.6,2697.5,0.37062]
[1727460583358,0.0485,2697.6,2697.5,0.37062]
[1727460584266,0.4191,2697.6,2697.4,0.37062]
[1727460584464,0.4191,2697.6,2697.5,0.37062]
[1727460584465,0.0485,2697.6,2697.5,0.37062]
[1727460585666,0.0485,2697.6,2697.5,3.26062]
[1727460589769,0.0485,2697.6,2697.3,0.96905504]
[1727460589982,0.0485,2697.6,2697.5,0.37062]
[1727460592066,0.37063,2697.4,2697.3,0.96905504]
[1727460592263,0.37063,2697.4,2697.2,3.57846]
[1727460592661,0.37064,2697.3,2697.2,3.2078]
[1727460594076,0.37064,2697.3,2697.2,3.57846]
[1727460594373,1.29726,2697.3,2697.2,3.2078]
[1727460595679,0.85334,2697.4,2697.2,3.2078]
[1727460595867,0.37064,2697.3,2697.2,4.17685504]
[1727460596376,0.60644,2697.3,2697.2,4.17685504]
[1727460597375,0.60644,2697.3,2697.2,4.54751504]
[1727460597964,0.65494,2697.3,2697.2,4.54751504]
[1727460599177,0.2843,2697.3,2697.2,4.54751504]
[1727460599370,0.65494,2697.3,2697.2,4.54751504]
[1727460599884,0.2843,2697.3,2697.2,4.54751504]
[1727460600382,0.2843,2697.3,2697.2,5.88751504]
[1727460600578,0.2843,2697.3,2697.2,7.8024519]
[1727460602676,0.2843,2697.3,2697.2,13.85050075]
[1727460602874,0.2843,2697.3,2697.2,12.39389686]
[1727460603073,0.2843,2697.3,2697.2,23.2632553]
[1727460604590,0.2843,2697.3,2697.2,17.2632553]
[1727460605087,0.2843,2697.3,2697.2,14.33608411]
[1727460605282,0.2843,2697.3,2697.2,13.40943411]
[1727460605582,0.2843,2697.3,2697.2,14.33608411]
[1727460605782,0.2843,2697.3,2697.2,13.40943411]
[1727460605980,0.2843,2697.3,2697.2,5.49344559]
[1727460606280,0.2843,2697.3,2697.2,7.83834732]
[1727460606478,0.65494,2697.3,2697.2,7.83834732]
[1727460606983,0.65494,2697.3,2697.2,6.98230617]
[1727460607683,0.65494,2697.3,2697.2,7.46768732]
[1727460608183,0.65494,2697.3,2697.2,6.01170537]
[1727460608385,0.65494,2697.3,2697.2,6.4986671]
[1727460609989,0.65494,2697.3,2697.2,5.04236537]
[1727460610188,0.65494,2697.3,2697.2,6.4986671]
[1727460610595,0.65494,2697.3,2697.2,5.04236537]
[1727460611288,0.65494,2697.3,2697.2,6.4986671]
[1727460613187,0.2843,2697.3,2697.2,6.4986671]
[1727460613386,0.2843,2697.3,2697.2,6.49969735]
[1727460615085,0.2843,2697.3,2697.2,10.60389562]
[1727460615281,0.2843,2697.3,2697.2,15.47694918]
[1727460615482,0.2843,2697.3,2697.2,13.53481066]
[1727460615886,0.2843,2697.3,2697.2,21.96248381]
[1727460616891,0.2843,2697.3,2697.2,23.81579381]
[1727460617090,0.2843,2697.3,2697.2,21.38812066]
[1727460617289,4.47937,2697.9,2697.8,0.37057]
[1727460617486,4.47937,2697.9,2697.8,1.34263541]
[1727460618992,4.1088,2697.9,2697.8,1.34263541]
[1727460620086,9.45821826,2699.4,2697.8,1.34263541]
[1727460620087,3.2078,2698.5,2697.9,0.92641]
[1727460620281,0.4351,2698.9,2698.8,0.37044]
[1727460620485,0.4307,2699.2,2698.8,5.3250816]
[1727460620689,0.4307,2699.2,2699.1,0.3704]
[1727460620690,0.8658,2699.2,2699.1,0.3704]
[1727460620889,0.4351,2699.2,2699.1,4.23228401]
[1727460621085,4.13357,2699.8,2699.1,5.80994425]
[1727460621086,0.4307,2699.7,2699.1,5.80994425]
[1727460621288,0.4307,2699.7,2699.4,3.26035]
[1727460621493,0.4307,2699.7,2699.4,2.89]
[1727460623596,0.80102,2699.7,2699.4,2.89]
[1727460623796,0.80102,2699.7,2699.2,2.89]
[1727460624001,1.26332,2699.7,2699.2,2.89]
[1727460624302,0.37033,2699.6,2699.2,2.89]
[1727460624592,0.893,2699.7,2699.0,6.0978]
[1727460624593,3.2078,2699.4,2699.0,6.0978]
[1727460624798,0.4711,2699.3,2699.0,3.2604]
[1727460625103,0.4711,2699.3,2699.0,2.89]
[1727460626692,0.4711,2699.3,2699.2,2.89]
[1727460629193,0.4711,2699.3,2699.2,3.26038]
[1727460629596,0.4711,2699.3,2699.2,2.89]
[1727460629797,0.4711,2699.3,2699.2,3.26038]
[1727460630589,3.2078,2699.4,2699.2,3.26038]
[1727460630788,3.2078,2699.4,2699.2,2.89]
[1727460631002,3.2078,2699.4,2699.0,2.89]
[1727460631003,0.37037,2699.3,2699.0,2.89]
[1727460631191,3.57816,2699.4,2699.0,2.89]
[1727460631396,0.37037,2699.3,2699.0,2.89]
[1727460631902,0.37039,2699.2,2698.8,3.26043]
[1727460632204,3.2078,2699.0,2698.3,6.1838]
[1727460632397,0.37046,2698.7,2698.3,6.4683]
[1727460632604,0.4448,2698.6,2698.3,6.4683]
[1727460632798,0.4649,2698.5,2698.3,6.4683]
[1727460633100,0.4649,2698.5,2698.4,0.37049]
[1727460633295,3.6727,2698.5,2698.3,2.89]
[1727460633503,0.83539,2698.5,2698.3,2.89]
[1727460633804,0.4649,2698.5,2698.3,3.2605]
[1727460635395,0.4649,2698.5,2698.2,3.2078]
[1727460635600,0.4649,2698.5,2698.1,2.89]
[1727460635601,0.37051,2698.3,2698.1,2.89]
[1727460635795,0.37052,2698.3,2698.1,2.89]
[1727460636500,3.5783,2698.4,2698.1,2.89]
[1727460636910,3.2078,2698.4,2698.1,2.89]
[1727460637107,3.5783,2698.4,2698.1,2.89]
[1727460637304,0.37051,2698.3,2698.1,2.89]
[1727460637809,3.2078,2698.4,2698.1,2.89]
[1727460637810,3.5783,2698.4,2698.1,2.89]
[1727460638111,0.37051,2698.3,2698.1,2.89]
[1727460638807,3.5783,2698.4,2698.1,2.89]
[1727460639208,7.2847,2698.4,2698.1,2.89]
[1727460640112,3.5783,2698.4,2698.1,2.89]
[1727460640415,0.37051,2698.3,2698.1,2.89]
[1727460641417,3.2078,2698.4,2698.1,2.89]
[1727460641418,3.5783,2698.4,2698.1,2.89]
[1727460642402,3.5783,2698.4,2698.1,3.26053]
[1727460642805,0.3705,2698.4,2698.1,3.26053]
[1727460648215,0.9175,2698.5,2698.1,2.89]
[1727460648421,1.28798,2698.5,2698.2,0.37051]
[1727460648816,1.28798,2698.5,2698.3,2.89]
[1727460648817,0.37049,2698.4,2698.3,2.89]
[1727460649309,4.07609,2698.4,2698.3,2.89]
[1727460652518,0.37054,2698.1,2697.9,2.89]
[1727460652717,0.37054,2698.1,2697.7,3.2078]
[1727460652718,0.37056,2698.0,2697.7,0.37058]
[1727460653026,0.4639,2697.9,2697.7,0.37058]
[1727460653215,0.83447,2697.9,2697.6,0.80779]
[1727460653715,0.37058,2697.8,2697.6,0.80779]
[1727460654023,0.83447,2697.9,2697.6,0.80779]
[1727460654220,0.37057,2697.8,2697.6,0.80779]
[1727460654419,0.3706,2697.6,2697.5,0.481]
[1727460654619,1.29717,2697.5,2697.4,3.2078]
[1727460654821,0.37066,2697.2,2697.1,3.3529]
[1727460655222,0.37066,2697.2,2697.1,2.89]
[1727460656120,0.83455,2697.3,2697.1,2.89]
[1727460656419,0.4639,2697.3,2697.1,3.26066]
[1727460656624,0.83455,2697.3,2697.1,3.26066]
[1727460656919,0.37066,2697.2,2697.1,2.89]
[1727460657619,0.4639,2697.3,2697.1,2.89]
[1727460657923,0.37066,2697.2,2697.1,2.89]
[1727460658425,0.83455,2697.3,2697.1,3.26067]
[1727460658917,0.37066,2697.2,2697.1,2.89]
[1727460659117,0.83455,2697.3,2697.1,3.26066]
[1727460659319,0.83455,2697.3,2697.1,2.89]
[1727460659621,0.37066,2697.2,2697.1,2.89]
[1727460660920,0.83455,2697.3,2697.1,2.89]
[1727460661115,0.4505,2697.4,2697.1,2.89]
[1727460661321,0.37059,2697.7,2697.3,6.0978]
[1727460661518,0.37059,2697.7,2697.6,2.89]
[1727460662127,0.37058,2697.8,2697.6,3.2606]
[1727460662431,0.37059,2697.8,2697.6,3.2606]
[1727460662928,5.05442,2697.9,2697.6,3.2606]
[1727460662929,0.37059,2697.7,2697.6,2.89]
[1727460663623,0.37058,2697.8,2697.6,3.2606]
[1727460663823,0.37058,2697.8,2697.6,2.89]
[1727460664026,0.37059,2697.8,2697.6,2.89]
[1727460664924,0.37059,2697.7,2697.6,2.89]
[1727460666423,0.37059,2697.7,2697.5,0.37061]
[1727460667223,0.3706,2697.6,2697.5,0.37061]
[1727460667427,0.3706,2697.6,2697.4,1.76382]
[1727460667631,0.37062,2697.5,2697.4,1.76382]
[1727460667935,0.37061,2697.6,2697.4,1.76382]
[1727460668229,0.37062,2697.5,2697.4,0.9433]
[1727460668424,0.37066,2697.2,2697.1,0.37067]
[1727460668732,0.37067,2697.2,2697.0,3.57848]
[1727460668926,0.37065,2697.3,2697.1,3.26066]
[1727460669132,0.92658,2697.4,2697.1,3.26066]
[1727460669433,0.37066,2697.2,2697.1,3.26067]
[1727460669629,0.37066,2697.2,2697.1,2.89]
[1727460669830,0.37066,2697.2,2697.1,3.26067]
[1727460670834,1.29731,2697.2,2697.1,2.89]
[1727460671424,1.29731,2697.2,2697.1,3.26067]
[1727460671638,1.29731,2697.2,2697.1,2.89]
[1727460671933,1.29731,2697.2,2697.1,3.26067]
[1727460672235,1.29731,2697.2,2697.1,2.89]
[1727460672440,1.29731,2697.2,2697.1,3.26067]
[1727460673329,0.37066,2697.2,2697.1,3.26067]
[1727460675131,0.92651,2697.7,2697.4,0.37062]
[1727460675322,0.3706,2697.7,2697.6,0.37059]
[1727460676126,0.37058,2697.8,2697.7,0.37057]
[1727460677028,0.3706,2697.7,2697.6,0.37059]
[1727460682538,0.37058,2697.8,2697.7,0.37059]
[1727460682743,0.37059,2697.7,2697.6,0.37059]
[1727460683340,0.3706,2697.6,2697.5,4.62731]
[1727460683542,0.92645,2697.8,2697.5,4.62731]
[1727460683728,0.3706,2697.6,2697.5,1.7373]
[1727460684440,0.4508,2697.7,2697.6,0.3706]
[1727460685445,0.8214,2697.7,2697.6,0.3706]
[1727460687139,0.3706,2697.6,2697.5,1.73731]
[1727460687447,0.4508,2697.7,2697.4,2.89]
[1727460687638,0.4508,2697.7,2697.6,0.3706]
[1727460687944,0.37059,2697.8,2697.7,0.37059]
[1727460688631,0.37057,2697.8,2697.7,0.37058]
[1727460689138,3.6605,2698.0,2697.9,0.37056]
[1727460689343,0.37053,2698.2,2697.9,2.89]
[1727460689648,0.37053,2698.1,2698.0,0.79394]
[1727460689847,0.37053,2698.1,2698.0,0.4234]
[1727460692045,0.37053,2698.1,2698.0,0.79395]
[1727460692548,0.37053,2698.1,2698.0,0.4234]
[1727460692945,0.37055,2698.0,2697.9,3.3272]
[1727460693649,0.79705,2698.0,2697.9,0.80776]
[1727460694440,0.79705,2698.0,2697.9,0.4372]
[1727460694949,0.79705,2698.0,2697.9,0.80776]
[1727460696047,0.79705,2698.0,2697.8,0.80147]
[1727460696259,0.4265,2698.0,2697.9,0.37056]
[1727460696546,0.4443,2698.4,2697.9,9.8042]
[1727460696750,0.4443,2698.4,2698.3,0.37051]
[1727460697051,0.81479,2698.4,2698.2,3.26051]
[1727460697451,0.81479,2698.4,2698.2,2.89]
[1727460697756,0.37051,2698.3,2698.2,2.89]
[1727460699155,0.37052,2698.2,2698.0,0.4552]
[1727460699654,3.2078,2698.3,2697.9,3.57835]
[1727460699858,0.4472,2698.1,2697.9,3.57835]
[1727460700046,0.4472,2698.1,2697.9,3.2078]
[1727460700353,0.37055,2698.0,2697.9,3.2078]
[1727460702755,0.4472,2698.1,2697.9,3.2078]
[1727460702756,0.81774,2698.1,2697.9,3.2078]
[1727460702956,0.81774,2698.1,2697.9,3.57836]
[1727460703154,0.37055,2698.0,2697.9,3.2078]
[1727460704756,0.4472,2698.1,2697.9,3.57835]
[1727460704757,0.81774,2698.1,2697.9,3.57835]
[1727460705456,0.37055,2698.0,2697.9,3.2078]
[1727460706656,0.37055,2698.0,2697.9,3.57836]
[1727460706957,0.37055,2698.0,2697.9,3.2078]
[1727460708556,0.4472,2698.1,2697.9,3.57836]
[1727460709354,0.37055,2698.0,2697.9,3.2078]
[1727460710263,0.37055,2698.0,2697.9,3.57836]
[1727460711070,0.81774,2698.1,2698.0,0.37055]
[1727460711669,0.37055,2698.0,2697.9,3.57835]
[1727460712062,0.37055,2698.0,2697.9,3.2078]